[Event "IIFL Wealth 4th Mumbai GM"]
[Site "Mumbai"]
[Date "2018.12.31"]
[Round "2"]
[White "Divya Deshmukh"]
[Black "Triton, Maxime"]
[Result "1-0"]
[ECO "B85"]
[WhiteElo "2190"]
[BlackElo "1937"]
[Annotator "NA"]
[PlyCount "48"]
[EventDate "2018.12.30"]
[EventType "swiss"]
[EventCountry "IND"]
[SourceTitle "playchess.com"]
[Source "ChessBase"]
[SourceQuality "1"]
[TimeControl "40/5400+30:1800+30"]

1. e4 {[%emt 0:00:00]} c5 {[%emt 0:00:00]} 2. Nf3 {[%emt 0:00:00]} e6 {[%emt 0:00:00]} 3. d4 {[%emt 0:00:00]} cxd4 {[%emt 0:00:00]} 4. Nxd4 {[%emt 0:00:00]} Nc6 {[%emt 0:00:09]} 5. Nc3 {[%emt 0:00:01]} Qc7 {[%emt 0:00:08]} 6. Be2 {[%emt 0:00:40]} a6 {[%emt 0:00:11]} 7. Be3 {[%emt 0:00:08]} Nf6 {[%emt 0:01:04]} 8. O-O {[%emt 0:00:16]} Be7 {[%emt 0:01:34]} 9. f4 {[%emt 0:02:08]} d6 {[%emt 0:00:41]} 10. Qe1 {[%emt 0:01:34]} O-O {[%emt 0:04:57]} 11. Qg3 {[%emt 0:01:56]} Bd7 {[%emt 0:04:13]} 12. Rad1 {[%emt 0:07:12]} b5 {[%emt 0:03:27]} 13. a3 {[%emt 0:00:13]} Rac8 {[%emt 0:02:38]} 14. Bf3 {[%emt 0:15:02]} Na5 {[%emt 0:13:10]} 15. e5 {[%emt 0:02:06]} Ne8 {[%emt 0:03:16]} 16. exd6 {[%emt 0:04:01]} Nxd6 {[%emt 0:19:30]} 17. f5 {[%emt 0:03:28]} Ndc4 {[%emt 0:03:55]} 18. Bf4 {[%emt 0:04:28]} Qa7 {[%emt 0:15:30]} 19. Bh6 {[%emt 0:00:18]} g6 {[%emt 0:03:46]} 20. fxg6 {[%emt 0:17:47]} hxg6 {[%emt 0:01:16]} 21. Be4 {[%emt 0:03:52]} Bd6 {[%emt 0:06:44]} 22. Qf2 {[%emt 0:00:09]} Be5 {[%emt 0:06:03]} 23. Bxf8 {[%emt 0:01:00]} Rxf8 {[%emt 0:00:05]} 24. Bxg6 {[%emt 0:00:45]} f5 1-0

[Event "IIFL Wealth 4th Mumbai GM"]
[Site "Mumbai"]
[Date "2018.12.31"]
[Round "2"]
[White "Surendran N"]
[Black "Lama, Milan"]
[Result "1/2-1/2"]
[ECO "D25"]
[WhiteElo "2176"]
[BlackElo "1897"]
[Annotator "NA"]
[PlyCount "65"]
[EventDate "2018.12.30"]
[EventType "swiss"]
[EventCountry "IND"]
[SourceTitle "playchess.com"]
[Source "ChessBase"]
[SourceQuality "1"]
[TimeControl "40/5400+30:1800+30"]

1. d4 {[%emt 0:00:51]} d5 {[%emt 0:00:00]} 2. Nf3 {[%emt 0:00:19]} Nf6 {[%emt 0:00:00]} 3. c4 {[%emt 0:00:04]} dxc4 {[%emt 0:00:00]} 4. e3 {[%emt 0:00:21]} Bg4 {[%emt 0:01:40]} 5. Bxc4 {[%emt 0:00:23]} e6 {[%emt 0:03:14]} 6. h3 {[%emt 0:04:45]} Bh5 {[%emt 0:00:59]} 7. Nbd2 {[%emt 0:02:12]} a6 {[%emt 0:04:34]} 8. O-O {[%emt 0:01:11]} Nc6 {[%emt 0:00:59]} 9. a3 {[%emt 0:00:56]} Bd6 {[%emt 0:01:31]} 10. b4 {[%emt 0:06:29]} O-O {[%emt 0:03:30]} 11. Bb2 {[%emt 0:00:08]} Re8 {[%emt 0:05:16]} 12. Qb3 {[%emt 0:04:46]} Bg6 {[%emt 0:13:48]} 13. Rad1 {[%emt 0:11:50]} a5 {[%emt 0:17:44]} 14. Ne5 {[%emt 0:17:11]} axb4 {[%emt 0:03:20]} 15. axb4 {[%emt 0:00:31]} Bxe5 {[%emt 0:03:16]} 16. dxe5 {[%emt 0:00:15]} Nd7 {[%emt 0:00:09]} 17. f4 {[%emt 0:15:30]} Qe7 {[%emt 0:02:05]} 18. Bc3 {[%emt 0:00:25]} Nb6 {[%emt 0:01:14]} 19. e4 {[%emt 0:02:47]} h6 {[%emt 0:09:26]} 20. f5 {[%emt 0:04:33]} Bh7 {[%emt 0:00:10]} 21. Rf3 {[%emt 0:08:09]} Nxc4 {[%emt 0:12:01]} 22. Nxc4 {[%emt 0:00:34]} Na7 {[%emt 0:04:18]} 23. Rdf1 {[%emt 0:13:38]} Nb5 {[%emt 0:02:31]} 24. Rg3 {[%emt 0:00:17]} Qd7 {[%emt 0:03:20]} 25. Bb2 {[%emt 0:00:15]} Kh8 {[%emt 0:03:54]} 26. Qe3 {[%emt 0:01:57]} Rg8 {[%emt 0:01:40]} 27. Rf4 {[%emt 0:02:17]} Qc6 {[%emt 0:01:49]} 28. Na5 {[%emt 0:00:21]} Qc2 {[%emt 0:00:18]} 29. Rf2 {[%emt 0:00:31]} Qd1+ {[%emt 0:00:34]} 30. Rf1 {[%emt 0:00:37]} Qc2 {[%emt 0:00:05]} 31. Rf2 {[%emt 0:00:06]} Qd1+ {[%emt 0:00:12]} 32. Rf1 {[%emt 0:00:01]} Qc2 {[%emt 0:00:10]} 33. Rf2 {[%emt 0:01:32]} 1/2-1/2

[Event "IIFL Wealth 4th Mumbai GM"]
[Site "Mumbai"]
[Date "2018.12.31"]
[Round "2"]
[White "Subrota, Biswas"]
[Black "Arya Nirag Shah"]
[Result "0-1"]
[ECO "B61"]
[WhiteElo "2171"]
[BlackElo "1812"]
[Annotator "NA"]
[PlyCount "60"]
[EventDate "2018.12.30"]
[EventType "swiss"]
[EventCountry "IND"]
[SourceTitle "playchess.com"]
[Source "ChessBase"]
[SourceQuality "1"]
[TimeControl "40/5400+30:1800+30"]

1. e4 {[%emt 0:00:00]} c5 {[%emt 0:00:00]} 2. Nf3 {[%emt 0:00:00]} d6 {[%emt 0:00:00]} 3. d4 {[%emt 0:00:06]} Nf6 {[%emt 0:00:00]} 4. Nc3 {[%emt 0:00:02]} cxd4 {[%emt 0:00:00]} 5. Nxd4 {[%emt 0:00:18]} Nc6 {[%emt 0:00:03]} 6. Bg5 {[%emt 0:01:59]} Bd7 {[%emt 0:00:20]} 7. Qd2 {[%emt 0:05:03]} Rc8 {[%emt 0:00:24]} 8. O-O-O {[%emt 0:01:51]} Nxd4 {[%emt 0:00:26]} 9. Qxd4 {[%emt 0:00:02]} Qa5 {[%emt 0:00:15]} 10. Bxf6 {[%emt 0:04:28]} gxf6 {[%emt 0:00:17]} 11. Kb1 {[%emt 0:00:02]} Qc5 {[%emt 0:01:10]} 12. Qd2 {[%emt 0:08:39]} Bg7 {[%emt 0:01:35]} 13. f4 {[%emt 0:03:22]} f5 {[%emt 0:01:36]} 14. e5 {[%emt 0:01:39]} O-O {[%emt 0:00:13]} 15. exd6 {[%emt 0:01:20]} e6 {[%emt 0:02:26]} 16. Ne2 {[%emt 0:06:51]} Rfd8 {[%emt 0:15:41]} 17. Nc1 {[%emt 0:02:25]} Ba4 {[%emt 0:05:22]} 18. Nb3 {[%emt 0:03:49]} Bxb3 {[%emt 0:00:30]} 19. axb3 {[%emt 0:00:30]} Rc6 {[%emt 0:05:03]} 20. d7 {[%emt 0:02:05]} Rxd7 {[%emt 0:07:15]} 21. Qc1 {[%emt 0:01:30]} Rdd6 {[%emt 0:02:11]} 22. Rxd6 {[%emt 0:03:38]} Rxd6 {[%emt 0:05:53]} 23. Be2 {[%emt 0:08:17]} a5 {[%emt 0:06:44]} 24. Re1 Kf8 25. Rd1 {[%emt 0:03:10]} Rxd1 {[%emt 0:00:35]} 26. Qxd1 {[%emt 0:00:03]} Qd4 {[%emt 0:00:05]} 27. Qxd4 {[%emt 0:00:59]} Bxd4 {[%emt 0:00:04]} 28. g4 {[%emt 0:07:08]} fxg4 {[%emt 0:00:47]} 29. Bxg4 {[%emt 0:00:02]} f5 {[%emt 0:00:11]} 30. Bf3 {[%emt 0:01:53]} Be3 {[%emt 0:01:03]} 0-1

[Event "IIFL Wealth 4th Mumbai GM"]
[Site "Mumbai"]
[Date "2018.12.31"]
[Round "2"]
[White "Deshpande, Aniruddha"]
[Black "Kulkarni, Vikramaditya"]
[Result "1/2-1/2"]
[ECO "A40"]
[WhiteElo "2167"]
[BlackElo "2345"]
[Annotator "NA"]
[PlyCount "83"]
[EventDate "2018.12.30"]
[EventType "swiss"]
[EventCountry "IND"]
[SourceTitle "playchess.com"]
[Source "ChessBase"]
[SourceQuality "1"]
[TimeControl "40/5400+30:1800+30"]

1. d4 {[%emt 0:00:00]} e6 {[%emt 0:00:34]} 2. c4 {[%emt 0:00:00]} d5 {[%emt 0:00:39]} 3. Nf3 {[%emt 0:00:25]} c6 {[%emt 0:00:13]} 4. g3 {[%emt 0:03:47]} Bd6 {[%emt 0:04:11]} 5. Bg2 {[%emt 0:01:34]} f5 {[%emt 0:03:56]} 6. O-O {[%emt 0:01:08]} Nf6 {[%emt 0:00:15]} 7. Nc3 {[%emt 0:02:41]} O-O {[%emt 0:01:44]} 8. Qc2 {[%emt 0:01:51]} b6 {[%emt 0:05:59]} 9. cxd5 {[%emt 0:04:48]} exd5 {[%emt 0:00:25]} 10. Bf4 {[%emt 0:01:49]} Bxf4 {[%emt 0:03:08]} 11. gxf4 {[%emt 0:03:02]} a5 {[%emt 0:02:45]} 12. Ne5 {[%emt 0:03:57]} Ra7 {[%emt 0:01:25]} 13. a3 {[%emt 0:10:21]} Ng4 {[%emt 0:04:49]} 14. e3 {[%emt 0:24:03]} Qh4 {[%emt 0:05:31]} 15. Nf3 {[%emt 0:03:44]} Qe7 {[%emt 0:09:49]} 16. h3 {[%emt 0:07:03]} Nf6 {[%emt 0:00:57]} 17. Na4 {[%emt 0:00:57]} Qc7 {[%emt 0:08:39]} 18. Rfc1 {[%emt 0:01:52]} Ne4 {[%emt 0:01:44]} 19. Qb3 {[%emt 0:07:56]} Rb7 {[%emt 0:04:40]} 20. Rc2 {[%emt 0:03:26]} Bd7 {[%emt 0:10:22]} 21. Rac1 {[%emt 0:01:14]} Kh8 {[%emt 0:01:31]} 22. Ne5 {[%emt 0:06:24]} Be8 {[%emt 0:01:17]} 23. Nc3 {[%emt 0:01:09]} Qd6 {[%emt 0:04:36]} 24. Na4 {[%emt 0:00:36]} Qe7 {[%emt 0:03:46]} 25. f3 {[%emt 0:04:59]} Nd6 {[%emt 0:01:27]} 26. Nc3 {[%emt 0:00:23]} h6 {[%emt 0:07:48]} 27. Ne2 {[%emt 0:00:15]} Kh7 {[%emt 0:00:35]} 28. Qd3 {[%emt 0:01:33]} g5 {[%emt 0:04:15]} 29. Kh2 {[%emt 0:00:44]} Qf6 {[%emt 0:01:18]} 30. Rg1 {[%emt 0:01:01]} Rg7 {[%emt 0:01:17]} 31. Qb3 {[%emt 0:00:50]} Qd8 {[%emt 0:00:50]} 32. Bf1 {[%emt 0:00:35]} b5 {[%emt 0:01:32]} 33. Qd3 {[%emt 0:00:34]} a4 {[%emt 0:00:24]} 34. Qc3 {[%emt 0:00:54]} Rfg8 {[%emt 0:01:06]} 35. Qe1 {[%emt 0:00:11]} Nc4 {[%emt 0:01:13]} 36. Qf2 {[%emt 0:00:27]} Qf6 {[%emt 0:01:03]} 37. Nc1 {[%emt 0:00:37]} gxf4 {[%emt 0:00:29]} 38. Rxg7+ {[%emt 0:00:12]} Rxg7 {[%emt 0:01:11]} 39. exf4 {[%emt 0:00:03]} Nd7 {[%emt 0:00:49]} 40. Ncd3 {[%emt 0:00:00]} Nf8 {[%emt 0:00:00]} 41. Nc5 {[%emt 0:05:47]} Nd6 {[%emt 0:07:41]} 42. Qe1 {[%emt 0:02:02]} 1/2-1/2

[Event "IIFL Wealth 4th Mumbai GM"]
[Site "Mumbai"]
[Date "2018.12.31"]
[Round "2"]
[White "Nikhil Magizhnan"]
[Black "Rebut, Paul"]
[Result "1-0"]
[ECO "B50"]
[WhiteElo "2148"]
[BlackElo "1740"]
[Annotator "NA"]
[PlyCount "153"]
[EventDate "2018.12.30"]
[EventType "swiss"]
[EventCountry "IND"]
[SourceTitle "playchess.com"]
[Source "ChessBase"]
[SourceQuality "1"]
[TimeControl "40/5400+30:1800+30"]

1. e4 {[%emt 0:00:00]} c5 {[%emt 0:00:00]} 2. Nf3 {[%emt 0:00:00]} d6 {[%emt 0:00:41]} 3. c3 {[%emt 0:00:00]} Nf6 {[%emt 0:00:41]} 4. Be2 {[%emt 0:00:32]} Nc6 {[%emt 0:00:27]} 5. Qc2 {[%emt 0:00:24]} Bd7 {[%emt 0:02:44]} 6. O-O {[%emt 0:01:23]} g6 {[%emt 0:01:03]} 7. d4 {[%emt 0:00:11]} cxd4 {[%emt 0:01:54]} 8. cxd4 {[%emt 0:00:03]} Rc8 {[%emt 0:01:26]} 9. Nc3 {[%emt 0:00:22]} Bg7 {[%emt 0:01:49]} 10. d5 {[%emt 0:02:26]} Na5 {[%emt 0:04:04]} 11. Be3 {[%emt 0:05:47]} a6 {[%emt 0:07:39]} 12. Bd4 {[%emt 0:01:35]} b5 {[%emt 0:03:58]} 13. a3 {[%emt 0:00:14]} O-O {[%emt 0:01:56]} 14. Nd2 {[%emt 0:00:43]} Re8 {[%emt 0:08:53]} 15. b4 {[%emt 0:00:35]} Nb7 {[%emt 0:00:59]} 16. Qb2 {[%emt 0:02:18]} e5 {[%emt 0:06:30]} 17. Be3 {[%emt 0:01:15]} Ng4 {[%emt 0:02:13]} 18. Bxg4 {[%emt 0:00:41]} Bxg4 {[%emt 0:00:44]} 19. a4 {[%emt 0:00:29]} f5 {[%emt 0:13:02]} 20. f3 {[%emt 0:00:36]} f4 {[%emt 0:00:10]} 21. Bf2 {[%emt 0:00:21]} Bd7 {[%emt 0:01:49]} 22. axb5 {[%emt 0:00:01]} axb5 {[%emt 0:07:04]} 23. Nb3 {[%emt 0:02:47]} Bf6 {[%emt 0:04:44]} 24. Na5 {[%emt 0:00:19]} Nxa5 {[%emt 0:00:27]} 25. bxa5 {[%emt 0:00:26]} Bh4 {[%emt 0:01:47]} 26. Bb6 {[%emt 0:03:25]} Qg5 {[%emt 0:01:12]} 27. Rac1 {[%emt 0:00:20]} Bg3 {[%emt 0:02:25]} 28. hxg3 {[%emt 0:05:09]} fxg3 {[%emt 0:00:20]} 29. Ne2 {[%emt 0:00:39]} Rb8 {[%emt 0:05:42]} 30. Qa3 {[%emt 0:13:10]} Rxb6 {[%emt 0:01:12]} 31. axb6 {[%emt 0:01:17]} b4 {[%emt 0:00:30]} 32. Qd3 {[%emt 0:07:23]} Bb5 {[%emt 0:01:59]} 33. f4 {[%emt 0:00:46]} Qh6 {[%emt 0:04:54]} 34. Qxg3 {[%emt 0:01:14]} Bxe2 {[%emt 0:00:22]} 35. Rf2 {[%emt 0:00:46]} exf4 {[%emt 0:01:48]} 36. Qxf4 {[%emt 0:00:34]} Qxf4 {[%emt 0:01:26]} 37. Rxf4 {[%emt 0:00:03]} Rb8 {[%emt 0:00:25]} 38. e5 {[%emt 0:00:42]} Rxb6 {[%emt 0:01:02]} 39. e6 {[%emt 0:00:25]} g5 {[%emt 0:02:41]} 40. e7 {[%emt 0:00:00]} Rb8 {[%emt 0:00:00]} 41. Rxb4 {[%emt 0:00:16]} Re8 {[%emt 0:00:36]} 42. Re1 {[%emt 0:02:06]} Bh5 {[%emt 0:00:21]} 43. Rb6 {[%emt 0:00:39]} Kf7 {[%emt 0:01:44]} 44. Rxd6 {[%emt 0:01:59]} Rxe7 {[%emt 0:00:13]} 45. Rxe7+ {[%emt 0:00:48]} Kxe7 {[%emt 0:00:06]} 46. Re6+ {[%emt 0:00:07]} Kd7 {[%emt 0:00:33]} 47. Re5 {[%emt 0:00:19]} Kd6 {[%emt 0:00:42]} 48. Rxg5 {[%emt 0:00:05]} Bg6 {[%emt 0:00:16]} 49. Kf2 {[%emt 0:00:36]} Be4 {[%emt 0:00:14]} 50. Rh5 {[%emt 0:00:44]} Bg6 {[%emt 0:00:09]} 51. Rg5 {[%emt 0:00:02]} Be4 {[%emt 0:00:06]} 52. Ke3 {[%emt 0:00:41]} Bxd5 {[%emt 0:00:23]} 53. Rg7 {[%emt 0:00:28]} h5 {[%emt 0:05:21]} 54. Rg5 {[%emt 0:02:58]} Bf7 {[%emt 0:01:02]} 55. Kf4 {[%emt 0:00:16]} Be8 {[%emt 0:06:24]} 56. Rg8 {[%emt 0:00:16]} Bf7 {[%emt 0:00:55]} 57. Rf8 {[%emt 0:00:33]} Bc4 {[%emt 0:00:57]} 58. Rh8 {[%emt 0:00:45]} Bf1 {[%emt 0:06:29]} 59. Kf3 {[%emt 0:00:55]} Ke5 {[%emt 0:00:57]} 60. Rxh5+ {[%emt 0:00:04]} Kf6 {[%emt 0:00:20]} 61. Ra5 {[%emt 0:00:06]} Kg6 {[%emt 0:00:21]} 62. Kf4 {[%emt 0:00:18]} Kf6 {[%emt 0:00:36]} 63. g4 {[%emt 0:00:08]} Kg6 {[%emt 0:00:12]} 64. Rc5 {[%emt 0:00:15]} Bg2 {[%emt 0:00:51]} 65. Rb5 {[%emt 0:00:06]} Bf1 {[%emt 0:00:34]} 66. Rb6+ {[%emt 0:00:03]} Kg7 {[%emt 0:00:09]} 67. Kg5 {[%emt 0:00:22]} Bg2 {[%emt 0:00:18]} 68. Ra6 {[%emt 0:00:21]} Bd5 {[%emt 0:00:10]} 69. Ra7+ {[%emt 0:00:07]} Kg8 {[%emt 0:00:26]} 70. Kf6 {[%emt 0:00:10]} Kh8 {[%emt 0:00:46]} 71. g5 {[%emt 0:00:02]} Be4 {[%emt 0:00:47]} 72. Re7 {[%emt 0:00:21]} Bd5 {[%emt 0:00:15]} 73. Re8+ {[%emt 0:00:28]} Bg8 {[%emt 0:00:29]} 74. Rd8 {[%emt 0:00:15]} Kh7 {[%emt 0:00:20]} 75. g6+ {[%emt 0:00:02]} Kh8 {[%emt 0:00:18]} 76. g7+ {[%emt 0:00:12]} Kh7 {[%emt 0:00:04]} 77. Rd4 {Kh8} 1-0

[Event "IIFL Wealth 4th Mumbai GM"]
[Site "Mumbai"]
[Date "2018.12.31"]
[Round "2"]
[White "Vantika Agrawal"]
[Black "Elgabry, Mohsen"]
[Result "1-0"]
[ECO "E62"]
[WhiteElo "2143"]
[BlackElo "2305"]
[Annotator "NA"]
[PlyCount "117"]
[EventDate "2018.12.30"]
[EventType "swiss"]
[EventCountry "IND"]
[SourceTitle "playchess.com"]
[Source "ChessBase"]
[SourceQuality "1"]
[TimeControl "40/5400+30:1800+30"]

1. d4 {[%emt 0:00:01]} Nf6 {[%emt 0:00:00]} 2. Nf3 {[%emt 0:00:14]} g6 {[%emt 0:00:09]} 3. g3 {[%emt 0:00:15]} Bg7 {[%emt 0:00:07]} 4. Bg2 {[%emt 0:00:08]} O-O {[%emt 0:00:14]} 5. O-O {[%emt 0:00:09]} d6 {[%emt 0:00:13]} 6. c4 {[%emt 0:00:13]} Nc6 {[%emt 0:00:23]} 7. Nc3 {[%emt 0:00:25]} e5 {[%emt 0:03:26]} 8. dxe5 {[%emt 0:00:38]} dxe5 {[%emt 0:00:27]} 9. Bg5 {[%emt 0:00:22]} Be6 {[%emt 0:00:30]} 10. Nd2 {[%emt 0:02:35]} h6 {[%emt 0:00:56]} 11. Bxf6 {[%emt 0:04:14]} Bxf6 {[%emt 0:03:27]} 12. Nde4 {[%emt 0:05:44]} Bg7 {[%emt 0:02:24]} 13. Nc5 {[%emt 0:09:12]} Qc8 {[%emt 0:05:10]} 14. Nd5 {[%emt 0:21:54]} Re8 {[%emt 0:11:17]} 15. Nxe6 {[%emt 0:09:45]} Rxe6 {[%emt 0:00:21]} 16. Bh3 {[%emt 0:09:53]} f5 {[%emt 0:00:20]} 17. g4 {[%emt 0:07:44]} Re8 {[%emt 0:01:52]} 18. gxf5 {[%emt 0:04:32]} gxf5 {[%emt 0:04:10]} 19. Kh1 {[%emt 0:03:40]} Ne7 {[%emt 0:06:43]} 20. e4 {[%emt 0:01:23]} Nxd5 {[%emt 0:01:35]} 21. cxd5 {[%emt 0:02:50]} Qd8 {[%emt 0:00:20]} 22. Bxf5 {[%emt 0:01:34]} Rf8 {[%emt 0:02:43]} 23. Qh5 {[%emt 0:02:46]} Qg5 {[%emt 0:04:59]} 24. Qxg5 {[%emt 0:05:11]} hxg5 {[%emt 0:00:03]} 25. Rac1 {[%emt 0:00:18]} c6 {[%emt 0:00:10]} 26. dxc6 {[%emt 0:00:22]} bxc6 {[%emt 0:00:30]} 27. Rxc6 {[%emt 0:00:30]} Rf6 {[%emt 0:00:03]} 28. Rfc1 {[%emt 0:02:07]} Rd8 {[%emt 0:00:18]} 29. Rxf6 {[%emt 0:00:43]} Bxf6 {[%emt 0:00:30]} 30. Be6+ {[%emt 0:00:26]} Kh8 {[%emt 0:04:24]} 31. Bd5 {[%emt 0:00:47]} Rb8 {[%emt 0:00:12]} 32. b3 {[%emt 0:01:45]} Bd8 {[%emt 0:00:40]} 33. Kg2 {[%emt 0:03:19]} Bb6 {[%emt 0:00:01]} 34. f3 {[%emt 0:00:42]} Rf8 {[%emt 0:00:34]} 35. Rc2 {[%emt 0:00:22]} Kg7 {[%emt 0:00:34]} 36. Kg3 {[%emt 0:00:32]} Kg6 {[%emt 0:05:13]} 37. b4 {[%emt 0:00:24]} Bd4 {[%emt 0:00:26]} 38. a4 {[%emt 0:00:27]} Be3 {[%emt 0:01:22]} 39. Rc6+ {[%emt 0:00:39]} Rf6 {[%emt 0:02:01]} 40. Rc7 {[%emt 0:00:00]} Bd2 {[%emt 0:00:00]} 41. b5 {[%emt 0:07:38]} Be1+ {[%emt 0:10:35]} 42. Kg2 {[%emt 0:01:46]} a6 {[%emt 0:00:11]} 43. h3 {[%emt 0:02:19]} axb5 {[%emt 0:00:25]} 44. axb5 {[%emt 0:00:07]} Ba5 {[%emt 0:00:51]} 45. Re7 {[%emt 0:01:29]} Bc3 {[%emt 0:00:04]} 46. Kf2 {[%emt 0:00:31]} Bd4+ {[%emt 0:00:04]} 47. Ke2 {[%emt 0:00:11]} Rf8 {[%emt 0:04:40]} 48. Re6+ {[%emt 0:01:42]} Rf6 {[%emt 0:00:01]} 49. Re8 {[%emt 0:00:51]} Kh5 {[%emt 0:04:47]} 50. Rh8+ {[%emt 0:02:04]} Kg6 {[%emt 0:00:02]} 51. Bc6 {[%emt 0:01:28]} Kf7 {[%emt 0:03:25]} 52. Rh5 {[%emt 0:02:52]} Rg6 {[%emt 0:01:31]} 53. Rh7+ {[%emt 0:00:10]} Ke6 {[%emt 0:00:27]} 54. Be8 {[%emt 0:10:25]} Rf6 {[%emt 0:00:38]} 55. Rg7 {[%emt 0:00:48]} Rf8 {[%emt 0:01:32]} 56. Bc6 {[%emt 0:00:54]} Rh8 {[%emt 0:01:27]} 57. Rb7 {[%emt 0:03:06]} Kd6 {[%emt 0:00:17]} 58. Rd7+ {[%emt 0:00:31]} Kc5 {[%emt 0:00:39]} 59. Rg7 {[%emt 0:01:17]} 1-0

[Event "IIFL Wealth 4th Mumbai GM"]
[Site "Mumbai"]
[Date "2018.12.31"]
[Round "2"]
[White "Sekar, B."]
[Black "Bhasima, Prashan"]
[Result "1-0"]
[ECO "C41"]
[WhiteElo "2137"]
[BlackElo "1658"]
[Annotator "NA"]
[PlyCount "58"]
[EventDate "2018.12.30"]
[EventType "swiss"]
[EventCountry "IND"]
[SourceTitle "playchess.com"]
[Source "ChessBase"]
[SourceQuality "1"]
[TimeControl "40/5400+30:1800+30"]

1. e4 {[%emt 0:00:00]} e5 {[%emt 0:00:00]} 2. Nf3 {[%emt 0:00:02]} d6 {[%emt 0:00:04]} 3. d4 {[%emt 0:00:09]} exd4 {[%emt 0:00:03]} 4. Nxd4 {[%emt 0:00:10]} Be7 {[%emt 0:00:10]} 5. Nc3 {[%emt 0:00:48]} Nf6 {[%emt 0:00:14]} 6. Bf4 {[%emt 0:00:52]} O-O {[%emt 0:04:45]} 7. Qd2 {[%emt 0:03:15]} Nc6 {[%emt 0:03:45]} 8. O-O-O {[%emt 0:00:38]} Nxd4 {[%emt 0:02:34]} 9. Qxd4 {[%emt 0:00:04]} Be6 {[%emt 0:03:25]} 10. f3 {[%emt 0:03:53]} Nh5 {[%emt 0:02:54]} 11. Be3 {[%emt 0:03:01]} Nf6 {[%emt 0:02:18]} 12. g4 {[%emt 0:01:43]} a6 {[%emt 0:01:23]} 13. g5 {[%emt 0:11:15]} Nh5 {[%emt 0:04:29]} 14. f4 {[%emt 0:02:18]} f5 {[%emt 0:06:52]} 15. Be2 {[%emt 0:04:43]} c5 {[%emt 0:05:03]} 16. Qd3 {[%emt 0:10:14]} g6 {[%emt 0:03:48]} 17. Bxh5 {[%emt 0:00:32]} gxh5 {[%emt 0:00:40]} 18. Nd5 {[%emt 0:00:13]} fxe4 {[%emt 0:04:37]} 19. Qxe4 {[%emt 0:01:12]} Bxd5 {[%emt 0:01:17]} 20. Qxd5+ {[%emt 0:00:03]} Kg7 {[%emt 0:00:47]} 21. f5 {[%emt 0:00:23]} Bxg5 {[%emt 0:03:12]} 22. Rhg1 {[%emt 0:00:06]} h6 {[%emt 0:00:54]} 23. h4 {[%emt 0:00:03]} Qd7 {[%emt 0:01:48]} 24. hxg5 {[%emt 0:00:12]} Rxf5 {[%emt 0:00:41]} 25. gxh6+ {[%emt 0:00:04]} Kf6 {[%emt 0:01:14]} 26. Qg2 {[%emt 0:00:24]} Rf8 {[%emt 0:00:48]} 27. Qg6+ {[%emt 0:00:09]} Ke5 {[%emt 0:01:41]} 28. Bxc5 {[%emt 0:00:09]} R8f6 {[%emt 0:07:22]} 29. Bd4+ {[%emt 0:00:29]} Kd5 1-0

[Event "IIFL Wealth 4th Mumbai GM"]
[Site "Mumbai"]
[Date "2018.12.31"]
[Round "2"]
[White "Gandhi, Anish"]
[Black "Regmi, Shikhar"]
[Result "1-0"]
[ECO "C79"]
[WhiteElo "2134"]
[BlackElo "1610"]
[Annotator "NA"]
[PlyCount "73"]
[EventDate "2018.12.30"]
[EventType "swiss"]
[EventCountry "IND"]
[SourceTitle "playchess.com"]
[Source "ChessBase"]
[SourceQuality "1"]
[TimeControl "40/5400+30:1800+30"]

1. e4 {[%emt 0:00:00]} e5 {[%emt 0:00:00]} 2. Nf3 {[%emt 0:00:00]} Nc6 {[%emt 0:00:00]} 3. Bb5 {[%emt 0:00:09]} a6 {[%emt 0:00:34]} 4. Ba4 {[%emt 0:00:07]} Nf6 {[%emt 0:00:41]} 5. O-O {[%emt 0:00:11]} d6 {[%emt 0:00:22]} 6. d4 {[%emt 0:06:16]} exd4 {[%emt 0:01:05]} 7. Nxd4 {[%emt 0:00:52]} Bd7 {[%emt 0:00:27]} 8. Nxc6 {[%emt 0:00:15]} bxc6 {[%emt 0:00:25]} 9. Re1 {[%emt 0:02:25]} Be7 {[%emt 0:00:16]} 10. Nc3 {[%emt 0:01:18]} O-O {[%emt 0:00:19]} 11. h3 {[%emt 0:00:34]} Rb8 {[%emt 0:00:38]} 12. Qd3 {[%emt 0:01:20]} Qc8 {[%emt 0:00:47]} 13. Bb3 {[%emt 0:00:37]} Kh8 {[%emt 0:01:20]} 14. Bf4 {[%emt 0:01:33]} Nh5 {[%emt 0:00:58]} 15. Bh2 {[%emt 0:00:28]} Bg5 {[%emt 0:02:03]} 16. Qf3 {[%emt 0:02:33]} g6 {[%emt 0:01:27]} 17. Rad1 {[%emt 0:03:13]} Be6 {[%emt 0:03:31]} 18. e5 {[%emt 0:07:29]} Bxb3 {[%emt 0:00:46]} 19. axb3 {[%emt 0:00:06]} d5 {[%emt 0:00:55]} 20. Rd4 {[%emt 0:06:53]} Ng7 {[%emt 0:00:24]} 21. Ra4 {[%emt 0:03:13]} Ne6 {[%emt 0:02:37]} 22. Rea1 {[%emt 0:00:48]} f6 {[%emt 0:00:48]} 23. Rxa6 {[%emt 0:02:13]} fxe5 {[%emt 0:00:04]} 24. Bxe5+ {[%emt 0:00:08]} Kg8 {[%emt 0:00:22]} 25. Qg3 {[%emt 0:02:34]} Rb6 {[%emt 0:05:38]} 26. Ra7 {[%emt 0:03:24]} Rb7 {[%emt 0:01:00]} 27. R7a4 {[%emt 0:00:44]} Qd8 {[%emt 0:01:31]} 28. Re1 {[%emt 0:00:54]} Nc5 {[%emt 0:01:17]} 29. Rg4 {[%emt 0:00:31]} Bf6 {[%emt 0:00:59]} 30. h4 {[%emt 0:02:36]} Bxe5 {[%emt 0:00:32]} 31. Rxe5 {[%emt 0:02:40]} Qf6 {[%emt 0:00:44]} 32. h5 {[%emt 0:00:47]} Ra7 {[%emt 0:01:27]} 33. hxg6 {[%emt 0:00:36]} Ra1+ {[%emt 0:00:08]} 34. Kh2 {[%emt 0:00:06]} h5 {[%emt 0:03:02]} 35. Rxh5 {[%emt 0:00:57]} Qxf2 {[%emt 0:00:10]} 36. Qxf2 {[%emt 0:00:40]} Rxf2 {[%emt 0:00:06]} 37. g7 {[%emt 0:00:03]} 1-0